fUST/lending_fUST_20240801
["ID","MTS","AMOUNT","RATE_DAILY","PERIOD"]
[333782365,1722491444183,-236.88596401,0.00013972,2]
[333782366,1722491444193,-500.0,0.00013972,2]
[333782367,1722491444202,-154.574166,0.00013972,2]
[333782368,1722491444212,-500.0,0.00013972,2]
[333782369,1722491444224,-154.574166,0.00013972,2]
[333782370,1722491444234,-370.56269579,0.00013972,2]
[333782371,1722491444245,-500.0,0.00013972,2]
[333782372,1722491444254,-500.0,0.00013972,2]
[333782373,1722491444264,-500.0,0.00013972,2]
[333782374,1722491444274,-500.0,0.00013972,2]
[333782375,1722491444284,-355.229296,0.00013972,2]
[333782376,1722491444293,-500.0,0.00013972,2]
[333782377,1722491444303,-355.229296,0.00013972,2]
[333782378,1722491444313,-500.0,0.00013972,2]
[333782379,1722491444323,-600.31550714,0.00013972,2]
[333782380,1722491444334,-500.0,0.00013972,2]
[333782381,1722491444345,-665.24,0.00013972,2]
[333782382,1722491444355,-500.0,0.00013972,2]
[333782383,1722491444366,-500.0,0.00013972,2]
[333782384,1722491444376,-545.96,0.00013972,2]
[333782385,1722491444385,-151.0,0.00013972,2]
[333782386,1722491444395,-151.0,0.00013972,2]
[333782387,1722491444407,-500.0,0.00013972,2]
[333782388,1722491444420,-500.0,0.00013972,2]
[333782389,1722491444431,-448.48008776,0.00013972,2]
[333782390,1722491444441,-500.0,0.00013972,2]
[333782391,1722491444452,-500.0,0.00013972,2]
[333782392,1722491444463,-832.63,0.00013972,2]
[333782393,1722491444474,-500.0,0.00013972,2]
[333782394,1722491444484,-151.0,0.00013972,2]
[333782395,1722491444494,-634.73241269,0.00013972,2]
[333782396,1722491444504,-152.596028,0.00013972,2]
[333782397,1722491444514,-500.0,0.00013972,2]
[333782398,1722491444526,-500.0,0.00013972,2]
[333782399,1722491444536,-151.0,0.00013972,2]
[333782400,1722491444546,-500.0,0.00013972,2]
[333782401,1722491444556,-500.0,0.00013972,2]
[333782402,1722491444567,-504.71019764,0.00013972,2]
[333782403,1722491444577,-500.0,0.00013972,2]
[333782404,1722491444588,-151.0,0.00013972,2]
[333782405,1722491444601,-151.0,0.00013972,2]
[333782406,1722491444611,-151.0,0.00013972,2]
[333782407,1722491444620,-151.0,0.00013972,2]
[333782408,1722491444631,-276.98765039,0.00013972,2]
[333782409,1722491444640,-500.0,0.00013972,2]
[333782410,1722491444650,-151.0,0.00013972,2]
[333782411,1722491444659,-151.0,0.00013972,2]
[333782412,1722491444668,-256.820112,0.00013972,2]
[333782413,1722491444678,-256.820112,0.00013972,2]
[333782414,1722491444689,-500.0,0.00013972,2]
[333782415,1722491444699,-706.53,0.00013972,2]
[333782416,1722491444709,-500.0,0.00013972,2]
[333782417,1722491444718,-151.0,0.00013972,2]
[333782418,1722491444731,-151.0,0.00013972,2]
[333782419,1722491444741,-500.0,0.00013972,2]
[333782420,1722491444750,-549.17,0.00013972,2]
[333782421,1722491444759,-872.07,0.00013972,2]
[333782422,1722491444768,-597.86,0.00013972,2]
[333782423,1722491444779,-503.94988963,0.00013972,2]
[333782424,1722491444790,-152.133188,0.00013972,2]
[333782425,1722491444799,-151.0,0.00013972,2]
[333782426,1722491444808,-151.0,0.00013972,2]
[333782427,1722491444818,-1370.26,0.00013972,2]
[333782428,1722491444832,-151.0,0.00013972,2]
[333782429,1722491444843,-151.0,0.00013972,2]
[333782430,1722491444855,-505.08837616,0.00013972,2]
[333782431,1722491444865,-151.0,0.00013972,2]
[333782432,1722491444876,-151.0,0.00013972,2]
[333782433,1722491444887,-506.16941099,0.00013972,2]
[333782434,1722491444898,-151.0,0.00013972,2]
[333782435,1722491444910,-151.0,0.00013972,2]
[333782436,1722491444922,-557.829485,0.00013972,2]
[333782437,1722491444932,-557.829485,0.00013972,2]
[333782438,1722491444942,-557.829485,0.00013972,2]
[333782439,1722491444951,-557.829485,0.00013972,2]
[333782440,1722491444962,-1232.59,0.00013972,2]
[333782441,1722491444972,-500.0,0.00013972,2]
[333782442,1722491444984,-500.0,0.00013972,2]
[333782443,1722491444993,-500.0,0.00013972,2]
[333782444,1722491445003,-557.383542,0.00013972,2]
[333782445,1722491445014,-557.383542,0.00013972,2]
[333782446,1722491445027,-873.92,0.00013972,2]
[333782447,1722491445036,-500.0,0.00013972,2]
[333782448,1722491445045,-557.383542,0.00013972,2]
[333782449,1722491445055,-557.383542,0.00013972,2]
[333782450,1722491445065,-406.97,0.00013972,2]
[333782451,1722491445075,-500.0,0.00013972,2]
[333782452,1722491445084,-506.19236917,0.00013972,2]
[333782453,1722491445093,-500.0,0.00013972,2]
[333782454,1722491445103,-500.0,0.00013972,2]
[333782455,1722491445114,-1002.73,0.00013972,2]
[333782456,1722491445124,-500.0,0.00013972,2]
[333782457,1722491445135,-605.82,0.00013972,2]
[333782458,1722491445149,-500.0,0.00013972,2]
[333782459,1722491445159,-500.0,0.00013972,2]
[333782460,1722491445168,-151.0,0.00013972,2]
[333782461,1722491445177,-151.0,0.00013972,2]
[333782462,1722491445187,-5240.14,0.00013972,2]
[333782463,1722491445197,-151.0,0.00013972,2]
[333782464,1722491445206,-203.105408,0.00013972,2]
[333782465,1722491445217,-594.78,0.00013972,2]
[333782466,1722491445226,-500.0,0.00013972,2]
[333782467,1722491445236,-1123.23,0.00013972,2]
[333782468,1722491445245,-500.0,0.00013972,2]
[333782469,1722491445255,-151.0,0.00013972,2]
[333782470,1722491445265,-151.0,0.00013972,2]
[333782471,1722491445275,-500.0,0.00013972,2]
[333782472,1722491445376,-645.01,0.00013972,2]
[333782473,1722491445386,-500.0,0.00013972,2]
[333782474,1722491445396,-1487.29,0.00013972,2]
[333782475,1722491445406,-660.83,0.00013972,2]
[333782476,1722491445415,-500.0,0.00013972,2]
[333782477,1722491445424,-500.0,0.00013972,2]
[333782478,1722491445434,-785.82,0.00013972,2]
[333782479,1722491445443,-3476.91,0.00013972,2]
[333782480,1722491445452,-170.568784,0.00013972,2]
[333782481,1722491445462,-1886.65,0.00013972,2]
[333782482,1722491445471,-170.568784,0.00013972,2]
[333782483,1722491445481,-767.03,0.00013972,2]
[333782484,1722491445491,-170.568784,0.00013972,2]
[333782485,1722491445500,-170.568784,0.00013972,2]
[333782486,1722491445510,-934.93,0.00013972,2]
[333782487,1722491445519,-505.96664735,0.00013972,2]
[333782488,1722491445529,-875.06,0.00013972,2]
[333782489,1722491445539,-500.0,0.00013972,2]
[333782490,1722491445548,-185.19096211,0.00013972,2]
[333782491,1722491445558,-926.62,0.00013972,2]
[333782492,1722491445568,-500.0,0.00013972,2]
[333782493,1722491445580,-526.0,0.00013972,2]
[333782494,1722491445591,-177.75794468,0.00013972,2]
[333782495,1722491445602,-500.0,0.00013972,2]
[333782496,1722491445612,-500.0,0.00013972,2]
[333782497,1722491445622,-1136.0,0.00013972,2]
[333782498,1722491445633,-500.0,0.00013972,2]
[333782499,1722491445644,-500.0,0.00013972,2]
[333782500,1722491445656,-504.61701673,0.00013972,2]
[333782501,1722491445666,-562.63,0.00013972,2]
[333782502,1722491445676,-500.0,0.00013972,2]
[333782503,1722491445685,-500.0,0.00013972,2]
[333782504,1722491445695,-677.72,0.00013972,2]
[333782505,1722491445704,-500.0,0.00013972,2]
[333782506,1722491445714,-897.4,0.00013972,2]
[333782507,1722491445723,-897.34,0.00013972,2]
[333782508,1722491445732,-151.0,0.00013972,2]
[333782509,1722491445741,-270.542061,0.00013972,2]
[333782510,1722491445751,-151.0,0.00013972,2]
[333782511,1722491445760,-151.0,0.00013972,2]
[333782512,1722491445770,-151.0,0.00013972,2]
[333782513,1722491445780,-151.0,0.00013972,2]
[333782514,1722491445790,-500.0,0.00013972,2]
[333782515,1722491445800,-626.76,0.00013972,2]
[333782516,1722491445809,-511.91,0.00013972,2]
[333782517,1722491445819,-881.1,0.00013972,2]
[333782518,1722491445834,-500.0,0.00013972,2]
[333782519,1722491445844,-755.09,0.00013972,2]
[333782520,1722491445853,-1068.91,0.00013972,2]
[333782521,1722491445864,-500.0,0.00013972,2]
[333782522,1722491445873,-4299.65,0.00013972,2]
[333782523,1722491445884,-1715.02,0.00013972,2]
[333782524,1722491445893,-500.0,0.00013972,2]
[333782525,1722491445904,-500.0,0.00013972,2]
[333782526,1722491445913,-500.0,0.00013972,2]
[333782527,1722491445923,-500.0,0.00013972,2]
[333782528,1722491445933,-4861.69,0.00013972,2]
[333782529,1722491445943,-944.82,0.00013972,2]
[333782530,1722491445955,-500.0,0.00013972,2]
[333782531,1722491445965,-500.0,0.00013972,2]
[333782532,1722491445975,-676.32,0.00013972,2]
[333782533,1722491445986,-375.405085,0.00013972,2]
[333782534,1722491445997,-375.405085,0.00013972,2]
[333782535,1722491446008,-500.0,0.00013972,2]
[333782536,1722491446018,-1754.91,0.00013972,2]
[333782537,1722491446027,-375.405085,0.00013972,2]
[333782538,1722491446037,-375.405085,0.00013972,2]
[333782539,1722491446048,-500.0,0.00013972,2]
[333782540,1722491446058,-687.79,0.00013972,2]
[333782541,1722491446068,-759.24,0.00013972,2]
[333782542,1722491446079,-500.0,0.00013972,2]
[333782543,1722491446088,-151.0,0.00013972,2]
[333782544,1722491446099,-151.0,0.00013972,2]
[333782545,1722491446110,-500.0,0.00013972,2]
[333782546,1722491446121,-500.0,0.00013972,2]
[333782547,1722491446132,-500.0,0.00013972,2]
[333782548,1722491446142,-563.84,0.00013972,2]
[333782549,1722491446152,-874.39,0.00013972,2]
[333782550,1722491446161,-1317.26,0.00013972,2]
[333782551,1722491446172,-500.0,0.00013972,2]
[333782552,1722491446181,-500.0,0.00013972,2]
[333782553,1722491446191,-500.0,0.00013972,2]
[333782554,1722491446200,-547.2,0.00013972,2]
[333782555,1722491446211,-500.0,0.00013972,2]
[333782556,1722491446221,-306.0,0.00013973,2]
[333782557,1722491446230,-151.0,0.00014136,2]
[333782558,1722491446242,-151.0,0.00014136,2]
[333782559,1722491446252,-256.820112,0.00014136,2]
[333782560,1722491446263,-375.405085,0.00014136,2]
[333782561,1722491446273,-375.405085,0.00014136,2]
[333782562,1722491446283,-151.0,0.00014136,2]
[333782563,1722491446293,-2790.03029717,0.00014146,2]
[333782564,1722491446303,-200.0,0.00014222,2]
[333782565,1722491446313,-200.12635228,0.00014222,2]
[333782566,1722491446323,-624.41234639,0.00014225,2]
[333782567,1722491446333,-1976.31,0.00014234,2]
[333782568,1722491446343,-500.0,0.00014235,2]
[333782569,1722491446355,-151.0,0.00014235,2]
[333782570,1722491446368,-170.568784,0.00014235,2]
[333782571,1722491446378,-170.568784,0.00014235,2]
[333782572,1722491446387,-151.0,0.00014235,2]
[333782573,1722491446397,-151.0,0.00014235,2]
[333782574,1722491446407,-624.41234639,0.00014236,2]
[333782575,1722491446417,-154.574166,0.00014236,2]
[333782576,1722491446427,-154.574166,0.00014236,2]
[333782577,1722491446437,-151.0,0.00014236,2]
[333782578,1722491446447,-151.0,0.00014236,2]
[333782579,1722491446457,-355.229296,0.00014236,2]
[333782580,1722491446467,-355.229296,0.00014236,2]
[333782581,1722491446478,-151.0,0.00014236,2]
[333782582,1722491446488,-151.0,0.00014236,2]
[333782583,1722491446500,-151.0,0.00014236,2]
[333782584,1722491446511,-151.0,0.00014236,2]
[333782585,1722491446521,-151.0,0.00014236,2]
[333782586,1722491446531,-151.0,0.00014236,2]
[333782587,1722491446541,-557.829485,0.00014236,2]
[333782588,1722491446551,-557.829485,0.00014236,2]
[333782589,1722491446560,-557.383542,0.00014236,2]
[333782590,1722491446570,-557.383542,0.00014236,2]
[333782591,1722491446580,-1248.82469278,0.00014236,2]
[333782593,1722491446590,-500.0,0.00014245,2]
[333782594,1722491446604,-500.0,0.00014245,2]
[333782595,1722491446614,-1976.31,0.00014245,2]
[333782597,1722491446623,-1976.31,0.00014245,2]
[333782598,1722491446633,-1976.31,0.00014245,2]
[333782599,1722491446643,-151.0,0.00014246,2]
[333782600,1722491446652,-500.0,0.00014246,2]
[333782602,1722491446662,-151.829439,0.00014246,2]
[333782603,1722491446671,-500.0,0.00014246,2]
[333782604,1722491446682,-659.03,0.00014246,2]
[333782605,1722491446692,-500.0,0.00014246,2]
[333782607,1722491446702,-500.0,0.00014246,2]
[333782608,1722491446711,-500.0,0.00014246,2]
[333782609,1722491446721,-500.0,0.00014246,2]
[333782610,1722491446731,-154.574166,0.00014246,2]
[333782611,1722491446741,-500.0,0.00014246,2]
[333782612,1722491446751,-154.574166,0.00014246,2]
[333782613,1722491446761,-500.0,0.00014246,2]
[333782614,1722491446770,-500.0,0.00014246,2]
[333782615,1722491446779,-500.0,0.00014246,2]
[333782616,1722491446788,-151.0,0.00014246,2]
[333782617,1722491446798,-355.229296,0.00014246,2]
[333782618,1722491446807,-355.229296,0.00014246,2]
[333782619,1722491446817,-500.0,0.00014246,2]
[333782621,1722491446829,-500.0,0.00014246,2]
[333782622,1722491446838,-665.24,0.00014246,2]
[333782624,1722491446849,-545.96,0.00014246,2]
[333782625,1722491446859,-500.0,0.00014246,2]
[333782627,1722491446869,-500.0,0.00014246,2]
[333782628,1722491446878,-832.63,0.00014246,2]
[333782629,1722491446888,-500.0,0.00014246,2]
[333782630,1722491446898,-151.0,0.00014246,2]
[333782631,1722491446908,-151.0,0.00014246,2]
[333782632,1722491446917,-151.0,0.00014246,2]
[333782633,1722491446927,-500.0,0.00014246,2]
[333782634,1722491446936,-151.0,0.00014246,2]
[333782635,1722491446946,-264.453644,0.00014246,2]
[333782636,1722491446956,-256.820112,0.00014246,2]
[333782637,1722491446965,-256.820112,0.00014246,2]
[333782638,1722491446975,-500.0,0.00014246,2]
[333782639,1722491446984,-706.53,0.00014246,2]
[333782640,1722491446994,-549.17,0.00014246,2]
[333782641,1722491447004,-872.07,0.00014246,2]
[333782642,1722491447013,-597.86,0.00014246,2]
[333782643,1722491447023,-151.0,0.00014246,2]
[333782644,1722491447032,-151.0,0.00014246,2]
[333782645,1722491447041,-1370.26,0.00014246,2]
[333782646,1722491447051,-151.0,0.00014246,2]
[333782647,1722491447060,-151.0,0.00014246,2]
[333782648,1722491447069,-151.0,0.00014246,2]
[333782649,1722491447078,-283.207865,0.00014246,2]
[333782650,1722491447088,-557.829485,0.00014246,2]
[333782651,1722491447098,-557.829485,0.00014246,2]
[333782653,1722491447108,-1232.59,0.00014246,2]
[333782655,1722491447117,-557.829485,0.00014246,2]
[333782656,1722491447127,-557.829485,0.00014246,2]
[333782657,1722491447136,-500.0,0.00014246,2]
[333782658,1722491447146,-500.0,0.00014246,2]
[333782659,1722491447156,-557.383542,0.00014246,2]
[333782660,1722491447166,-557.383542,0.00014246,2]
[333782661,1722491447175,-873.92,0.00014246,2]
[333782662,1722491447185,-500.0,0.00014246,2]
[333782663,1722491447195,-557.383542,0.00014246,2]
[333782664,1722491447204,-557.383542,0.00014246,2]
[333782665,1722491447214,-1002.73,0.00014246,2]
[333782666,1722491447224,-500.0,0.00014246,2]
[333782667,1722491447233,-605.82,0.00014246,2]
[333782668,1722491447243,-500.0,0.00014246,2]
[333782669,1722491447253,-5240.14,0.00014246,2]
[333782670,1722491447262,-594.78,0.00014246,2]
[333782671,1722491447272,-301.13484717,0.00014246,2]
[333782672,1722491447281,-1123.23,0.00014246,2]
[333782673,1722491447290,-361.1431352,0.00014246,2]
[333782674,1722491447300,-500.0,0.00014246,2]
[333782675,1722491447309,-151.0,0.00014246,2]
[333782676,1722491447319,-151.0,0.00014246,2]
[333782677,1722491447328,-645.01,0.00014246,2]
[333782678,1722491447337,-500.0,0.00014246,2]
[333782679,1722491447348,-1487.29,0.00014246,2]
[333782680,1722491447358,-660.83,0.00014246,2]
[333782681,1722491447367,-500.0,0.00014246,2]
[333782682,1722491447376,-500.0,0.00014246,2]
[333782683,1722491447386,-785.82,0.00014246,2]
[333782684,1722491447395,-3476.91,0.00014246,2]
[333782685,1722491447405,-1886.65,0.00014246,2]
[333782686,1722491447414,-767.03,0.00014246,2]
[333782687,1722491447423,-170.568784,0.00014246,2]
[333782688,1722491447433,-170.568784,0.00014246,2]
[333782689,1722491447442,-934.93,0.00014246,2]
[333782690,1722491447451,-170.568784,0.00014246,2]
[333782691,1722491447461,-170.568784,0.00014246,2]
[333782692,1722491447470,-875.06,0.00014246,2]
[333782693,1722491447479,-500.0,0.00014246,2]
[333782694,1722491447488,-926.62,0.00014246,2]
[333782695,1722491447498,-500.0,0.00014246,2]
[333782696,1722491447507,-526.0,0.00014246,2]
[333782697,1722491447516,-500.0,0.00014246,2]
[333782698,1722491447525,-500.0,0.00014246,2]
[333782699,1722491447535,-1136.0,0.00014246,2]
[333782700,1722491447545,-500.0,0.00014246,2]
[333782701,1722491447554,-500.0,0.00014246,2]
[333782702,1722491447563,-562.63,0.00014246,2]
[333782703,1722491447572,-500.0,0.00014246,2]
[333782704,1722491447582,-500.0,0.00014246,2]
[333782705,1722491447591,-677.72,0.00014246,2]
[333782706,1722491447602,-500.0,0.00014246,2]
[333782707,1722491447612,-897.4,0.00014246,2]
[333782708,1722491447621,-897.34,0.00014246,2]
[333782709,1722491447631,-151.0,0.00014246,2]
[333782710,1722491447640,-151.0,0.00014246,2]
[333782711,1722491447650,-151.0,0.00014246,2]
[333782712,1722491447659,-271.442843,0.00014246,2]
[333782713,1722491447669,-500.0,0.00014246,2]
[333782714,1722491447678,-626.76,0.00014246,2]
[333782715,1722491447687,-511.91,0.00014246,2]
[333782716,1722491447697,-881.1,0.00014246,2]
[333782717,1722491447706,-500.0,0.00014246,2]
[333782718,1722491447715,-755.09,0.00014246,2]
[333782719,1722491447724,-1068.91,0.00014246,2]
[333782720,1722491447734,-500.0,0.00014246,2]
[333782721,1722491447744,-4299.65,0.00014246,2]
[333782722,1722491447837,-1715.02,0.00014246,2]
[333782723,1722491447849,-500.0,0.00014246,2]
[333782724,1722491447859,-500.0,0.00014246,2]
[333782725,1722491447869,-500.0,0.00014246,2]
[333782726,1722491447880,-500.0,0.00014246,2]
[333782727,1722491447891,-944.82,0.00014246,2]
[333782728,1722491447903,-4861.69,0.00014246,2]
[333782729,1722491447914,-500.0,0.00014246,2]
[333782730,1722491447923,-676.32,0.00014246,2]
[333782731,1722491447933,-375.405085,0.00014246,2]
[333782732,1722491447942,-375.405085,0.00014246,2]
[333782733,1722491447951,-500.0,0.00014246,2]
[333782734,1722491447961,-1754.91,0.00014246,2]
[333782735,1722491447970,-375.405085,0.00014246,2]
[333782736,1722491447979,-375.405085,0.00014246,2]
[333782737,1722491447989,-500.0,0.00014246,2]
[333782738,1722491447998,-687.79,0.00014246,2]
[333782739,1722491448007,-759.24,0.00014246,2]
[333782740,1722491448017,-500.0,0.00014246,2]
[333782741,1722491448026,-500.0,0.00014246,2]
[333782742,1722491448036,-500.0,0.00014246,2]
[333782743,1722491448046,-563.84,0.00014246,2]
[333782744,1722491448056,-874.39,0.00014246,2]
[333782745,1722491448066,-1317.26,0.00014246,2]
[333782746,1722491448075,-500.0,0.00014246,2]
[333782747,1722491448085,-500.0,0.00014246,2]
[333782748,1722491448096,-341.43833868,0.00014246,2]
[333782749,1722491448105,-547.2,0.00014246,2]
[333782750,1722491448114,-175.452602,0.00014247,2]
[333782751,1722491448123,-750.0,0.00014247,2]
[333782752,1722491448133,-246.956336,0.00014341,2]
[333782753,1722491448143,-204.869399,0.00014341,2]
[333782754,1722491448152,-163.574824,0.00014341,2]
[333782755,1722491448162,-185.366797,0.00014341,2]
[333782756,1722491448171,-1327.06611714,0.00014348,6]
[333782757,1722491448181,-154.574166,0.0001439,2]
[333782758,1722491448191,-154.574166,0.0001439,2]
[333782759,1722491448200,-355.229296,0.0001439,2]
[333782760,1722491448209,-355.229296,0.0001439,2]
[333782761,1722491448217,-151.0,0.0001439,2]
[333782762,1722491448227,-150.112233,0.000144,2]
[333782763,1722491448237,-624.41234639,0.000144,2]
[333782764,1722491448246,-151.0,0.0001441,2]
[333782765,1722491448256,-151.0,0.0001441,2]
[333782766,1722491448266,-170.568784,0.0001441,2]
[333782767,1722491448276,-170.568784,0.0001441,2]
[333782768,1722491448285,-151.0,0.0001441,2]
[333782769,1722491448296,-151.0,0.00014455,2]
[333782770,1722491448306,-600.0,0.00014465,2]
[333782771,1722491448315,-624.41234639,0.000145,2]
[333782772,1722491448325,-500.0,0.00014509,2]
[333782773,1722491448335,-1976.31,0.00014509,2]
[333782774,1722491448344,-151.0,0.0001451,2]
[333782775,1722491448355,-298.588884,0.0001451,2]
[333782776,1722491448364,-256.820112,0.0001451,2]
[333782777,1722491448374,-151.0,0.0001451,2]
[333782778,1722491448383,-151.0,0.0001451,2]
[333782779,1722491448393,-151.0,0.0001451,2]
[333782780,1722491448402,-557.829485,0.0001451,2]
[333782781,1722491448411,-557.829485,0.0001451,2]
[333782782,1722491448421,-557.383542,0.0001451,2]
[333782783,1722491448431,-557.383542,0.0001451,2]
[333782784,1722491448440,-151.0,0.0001451,2]
[333782785,1722491448451,-170.568784,0.0001451,2]
[333782786,1722491448461,-1248.82469278,0.0001451,2]
[333782787,1722491448470,-170.568784,0.0001451,2]
[333782788,1722491448479,-151.0,0.0001451,2]
[333782789,1722491448488,-375.405085,0.0001451,2]
[333782790,1722491448499,-375.405085,0.0001451,2]
[333782791,1722491448508,-151.0,0.00014519,2]
[333782792,1722491448517,-158.678983,0.00014519,2]
[333782793,1722491448527,-557.829485,0.00014519,2]
[333782794,1722491448537,-557.829485,0.00014519,2]
[333782795,1722491448546,-557.383542,0.00014519,2]
[333782796,1722491448555,-557.383542,0.00014519,2]
[333782797,1722491448565,-500.0,0.00014519,2]
[333782798,1722491448576,-500.0,0.00014519,2]
[333782799,1722491448586,-233.26,0.00014519,2]
[333782800,1722491448597,-1976.31,0.00014519,2]
[333782801,1722491448607,-1976.31,0.00014519,2]
[333782802,1722491448617,-1976.31,0.00014519,2]
[333782803,1722491448627,-1976.31,0.00014519,2]
[333782804,1722491448637,-587.0,0.00014519,2]
[333782805,1722491448646,-40121.44798733,0.0001452,5]
[333782806,1722491448656,-163.574824,0.0001452,2]
[333782807,1722491448667,-2738.47,0.0001452,2]
[333782808,1722491448676,-2000.28719637,0.0001452,2]
[333782809,1722491448955,-504.17786989,0.00013698,2]
[333782810,1722491448965,-85.23280363,0.0001452,2]
[333782811,1722491448975,-500.0,0.0001452,2]
[333782812,1722491448984,-162.79586153,0.0001452,2]
[333782813,1722491448993,-659.03,0.0001452,2]
[333782814,1722491449002,-500.0,0.0001452,2]
[333782815,1722491449012,-500.0,0.0001452,2]
[333782816,1722491449022,-500.0,0.0001452,2]
[333782817,1722491449031,-154.574166,0.0001452,2]
[333782818,1722491449041,-154.574166,0.0001452,2]
[333782819,1722491449052,-500.0,0.0001452,2]
[333782820,1722491449061,-154.574166,0.0001452,2]
[333782821,1722491449070,-154.574166,0.0001452,2]
[333782822,1722491449080,-500.0,0.0001452,2]
[333782823,1722491449089,-500.0,0.0001452,2]
[333782824,1722491449099,-355.229296,0.0001452,2]
[333782825,1722491449109,-355.229296,0.0001452,2]
[333782826,1722491449119,-355.229296,0.0001452,2]
[333782827,1722491449129,-355.229296,0.0001452,2]
[333782828,1722491449138,-500.0,0.0001452,2]
[333782829,1722491449148,-665.24,0.0001452,2]
[333782830,1722491449158,-545.96,0.0001452,2]
[333782831,1722491449167,-500.0,0.0001452,2]
[333782832,1722491449177,-461.64509216,0.0001452,2]
[333782833,1722491449186,-832.63,0.0001452,2]
[333782834,1722491449197,-500.0,0.0001452,2]
[333782835,1722491449206,-151.0,0.0001452,2]
[333782836,1722491449215,-151.0,0.0001452,2]
[333782837,1722491449225,-500.0,0.0001452,2]
[333782838,1722491449234,-256.820112,0.0001452,2]
[333782839,1722491449243,-256.820112,0.0001452,2]
[333782840,1722491449253,-40.60794685,0.0001452,2]
[333782841,1722491449302,-459.39205315,0.0001452,2]
[333782842,1722491449312,-108.46863755,0.0001452,2]
[333782843,1722491449323,-416.75595341,0.0001452,2]
[333782846,1722491470473,244.74168763,9.9e-05,2]
[333782847,1722491532867,157.32619577,9.9e-05,2]
[333782848,1722491538857,244.74168763,9.999e-05,2]
[333782850,1722492207024,1000.0,0.00021,60]
[333782853,1722492558007,273.37336231,9.9e-05,2]
[333782854,1722492566005,273.37336231,9.9e-05,2]
[333783100,1722492638147,-156.55,0.00010959,2]
[333783101,1722492638158,-1945.4264227,0.00011244,2]
[333783102,1722492638167,-163.332609,0.00011861,2]
[333783103,1722492638177,-163.332609,0.00011903,2]
[333783104,1722492638187,-163.332609,0.00011944,2]
[333783105,1722492638197,-163.332609,0.00011985,2]
[333783106,1722492638215,-406.32744819,0.00012,2]
[333783107,1722492638225,-163.332609,0.00012026,2]
[333783108,1722492638235,-163.332609,0.00012067,2]
[333783109,1722492638247,-163.332609,0.00012109,2]
[333783110,1722492638257,-163.332609,0.0001215,2]
[333783111,1722492638266,-163.332609,0.00012191,2]
[333783112,1722492638276,-163.332609,0.00012232,2]
[333783113,1722492638289,-163.332609,0.00012273,2]
[333783114,1722492638300,-163.332609,0.00012315,2]
[333783115,1722492638310,-163.332609,0.00012356,2]
[333783116,1722492638321,-163.332609,0.00012397,2]
[333783117,1722492638331,-163.332609,0.00012438,2]
[333783118,1722492638340,-163.332609,0.00012479,2]
[333783119,1722492638350,-300.0,0.00012899,2]
[333783120,1722492638361,-2790.03029717,0.000129,2]
[333783121,1722492638370,-1832.4033759,0.000129,2]
[333783122,1722492638380,-930.33960339,0.0001297,6]
[333783123,1722492638394,-397.259937,0.0001297,6]